bitfinex/quotes_BTCUSD_20250727
["timestamp","ask_amount","ask_price","bid_price","bid_amount"]
[1753640610568,0.76487883,119340.0,119330.0,0.64942256]
[1753640610768,1.01487883,119340.0,119330.0,0.64942256]
[1753640610913,0.69296342,119340.0,119330.0,0.66618231]
[1753640611115,1.01487883,119340.0,119330.0,0.66618231]
[1753640611393,1.01487883,119340.0,119330.0,0.53274231]
[1753640611609,1.01487883,119340.0,119330.0,0.66618231]
[1753640611811,0.76487883,119340.0,119330.0,0.66618231]
[1753640612018,0.76487883,119340.0,119330.0,0.47344]
[1753640613163,0.76487883,119340.0,119330.0,0.64104244]
[1753640613342,1.01487883,119340.0,119330.0,0.64942249]
[1753640614399,1.01487883,119340.0,119330.0,0.66618238]
[1753640614816,1.01487883,119340.0,119330.0,0.67456222]
[1753640615663,1.01487883,119340.0,119330.0,0.64942249]
[1753640618118,1.00649941,119340.0,119330.0,0.47344]
[1753640618801,0.684584,119340.0,119330.0,0.47344]
[1753640619025,0.684584,119340.0,119330.0,0.64942242]
[1753640619270,1.00649941,119340.0,119330.0,0.64942242]
[1753640619474,0.684584,119340.0,119330.0,0.65780233]
[1753640619675,1.00649941,119340.0,119330.0,0.65780233]
[1753640619910,1.00649941,119340.0,119330.0,0.64942242]
[1753640620115,1.00649941,119340.0,119330.0,0.64104244]
[1753640620321,1.00649941,119340.0,119330.0,0.47344]
[1753640621346,1.00649941,119340.0,119330.0,0.34]
[1753640621715,1.00649941,119340.0,119330.0,0.4734]
[1753640623592,0.684584,119340.0,119330.0,0.65776247]
[1753640623832,1.00649941,119340.0,119330.0,0.65776247]
[1753640624503,1.00649941,119340.0,119330.0,0.4734]
[1753640625316,1.00649941,119340.0,119330.0,0.34]
[1753640625513,1.00649941,119340.0,119330.0,0.13336]
[1753640626709,0.24108242,119330.0,119320.0,0.57713424]
[1753640626925,0.68618783,119330.0,119320.0,0.47336]
[1753640627146,0.76118783,119330.0,119320.0,0.34]
[1753640627366,0.76118783,119330.0,119320.0,0.47336]
[1753640627582,0.77154968,119330.0,119320.0,0.47336]
[1753640627831,1.01118783,119330.0,119320.0,0.47336]
[1753640628064,1.01118783,119330.0,119320.0,0.64935731]
[1753640628508,1.01118783,119330.0,119320.0,0.47336]
[1753640628946,1.01318783,119330.0,119320.0,0.47336]
[1753640629160,1.01618783,119330.0,119320.0,0.47336]
[1753640630017,1.01618783,119330.0,119320.0,0.47136]
[1753640630413,1.01618783,119330.0,119320.0,0.338]
[1753640630658,1.01618783,119330.0,119320.0,0.47136]
[1753640630862,1.01618783,119330.0,119320.0,0.63897649]
[1753640631072,1.01618783,119330.0,119320.0,0.65573792]
[1753640631727,1.01618783,119330.0,119320.0,0.65573806]
[1753640632890,1.01618783,119330.0,119320.0,0.66411874]
[1753640633129,1.08618783,119330.0,119320.0,0.66411874]
[1753640634173,1.08618783,119330.0,119320.0,0.65573806]
[1753640634383,0.76427242,119330.0,119320.0,0.64735731]
[1753640634603,1.08618783,119330.0,119320.0,0.65573792]
[1753640635461,1.10294772,119330.0,119320.0,0.66411846]
[1753640635681,1.10294772,119330.0,119320.0,0.65573792]
[1753640635870,0.92696516,119330.0,119320.0,0.66411846]
[1753640636105,0.92696516,119330.0,119320.0,0.67249886]
[1753640636317,0.92696516,119330.0,119320.0,0.67249893]
[1753640636318,0.93534528,119330.0,119320.0,0.67249893]
[1753640636537,1.10294772,119330.0,119320.0,0.65573792]
[1753640636748,1.10294772,119330.0,119320.0,0.66411846]
[1753640636960,1.10294772,119330.0,119320.0,0.65573792]
[1753640637172,1.10294772,119330.0,119320.0,0.65573806]
[1753640637585,1.10294772,119330.0,119320.0,0.66411874]
[1753640637797,0.92696516,119330.0,119320.0,0.67249928]
[1753640638012,1.0945676,119330.0,119320.0,0.67249928]
[1753640638220,1.0945676,119330.0,119320.0,0.68087989]
[1753640638666,1.0945676,119330.0,119320.0,0.67249935]
[1753640639101,1.0945676,119330.0,119320.0,0.66411874]
[1753640639486,1.08618783,119330.0,119320.0,0.64735731]
[1753640639900,1.08618783,119330.0,119320.0,0.65573806]
[1753640640319,1.08618783,119330.0,119320.0,0.64735731]
[1753640640526,1.08618783,119330.0,119320.0,0.63897649]
[1753640640737,1.08618783,119330.0,119320.0,0.64735731]
[1753640640977,1.08618783,119330.0,119320.0,0.65573799]
[1753640641192,1.07780785,119330.0,119320.0,0.338]
[1753640641422,0.25601192,119310.0,119300.0,0.20957877]
[1753640641636,0.61710864,119310.0,119300.0,0.68609659]
[1753640641846,0.76633864,119310.0,119300.0,0.34]
[1753640642077,0.76633864,119310.0,119300.0,0.47328]
[1753640642509,0.19278999,119300.0,119290.0,0.21791751]
[1753640642726,0.52947289,119300.0,119290.0,0.45653007]
[1753640642975,0.52947289,119300.0,119290.0,0.79653007]
[1753640643191,0.7054997,119300.0,119290.0,0.78814763]
[1753640643655,0.7554997,119300.0,119290.0,0.77976512]
[1753640643884,0.73873631,119300.0,119290.0,0.77138268]
[1753640644139,0.74073631,119300.0,119290.0,0.77138268]
[1753640644393,0.74073631,119300.0,119290.0,0.77976547]
[1753640644606,0.74173631,119300.0,119290.0,0.77976547]
[1753640645058,0.7693543,119300.0,119290.0,0.51086381]
[1753640645272,0.76097222,119300.0,119290.0,0.37549381]
[1753640645477,0.76097222,119300.0,119290.0,0.48366282]
[1753640645862,0.76097222,119300.0,119290.0,0.35038282]
[1753640646092,0.76097222,119300.0,119290.0,0.48362282]
[1753640647019,0.43905681,119300.0,119290.0,0.48362282]
[1753640647366,0.76097222,119300.0,119290.0,0.47324]
[1753640647785,0.43905681,119300.0,119290.0,0.47324]
[1753640647994,0.76097222,119300.0,119290.0,0.34]
[1753640648222,0.76097222,119300.0,119290.0,0.47324]
[1753640651180,0.76097222,119300.0,119290.0,0.34]
[1753640651395,0.76097222,119300.0,119290.0,0.47324]
[1753640652017,1.01097222,119300.0,119290.0,0.47324]
[1753640652223,1.00997222,119300.0,119290.0,0.47324]
[1753640652437,1.00797222,119300.0,119290.0,0.47324]
[1753640652831,1.00797222,119300.0,119290.0,0.47724]
[1753640653456,1.00797222,119300.0,119290.0,0.13724]
[1753640654119,1.00797222,119300.0,119290.0,0.13924]
[1753640654377,0.68605681,119300.0,119290.0,0.13924]
[1753640654623,0.68605681,119300.0,119290.0,0.30689864]
[1753640654858,0.68605681,119300.0,119290.0,0.39028924]
[1753640654859,0.43915237,119300.0,119290.0,0.39028924]
[1753640655089,0.56779041,119300.0,119290.0,0.32575429]
[1753640655342,0.66742041,119300.0,119290.0,0.33413694]
[1753640655589,0.82169123,119300.0,119290.0,0.35090203]
[1753640655824,0.98933582,119300.0,119290.0,0.33413694]
[1753640656048,0.82169123,119300.0,119290.0,0.34251945]
[1753640656258,0.82169123,119300.0,119290.0,0.34251952]
[1753640656479,0.82169123,119300.0,119290.0,0.32575429]
[1753640656690,1.01815409,119300.0,119290.0,0.13924]
[1753640657127,1.01815409,119300.0,119290.0,0.1392]
[1753640657339,1.01815409,119300.0,119290.0,0.006]
[1753640657558,1.01815409,119300.0,119290.0,0.1392]
[1753640659139,1.01815409,119300.0,119290.0,0.30685864]
[1753640659348,1.01815409,119300.0,119290.0,0.31524157]
[1753640659532,1.00977215,119300.0,119290.0,0.31524157]
[1753640659742,1.00977215,119300.0,119290.0,0.32362443]
[1753640660132,1.00977215,119300.0,119290.0,0.31524157]
[1753640660326,0.95977215,119300.0,119290.0,0.31524157]
[1753640660526,1.00977215,119300.0,119290.0,0.31524157]
[1753640660905,1.00139,119300.0,119290.0,0.30685864]
[1753640661322,1.00139,119300.0,119290.0,0.31524157]
[1753640661739,1.00139,119300.0,119290.0,0.1392]
[1753640662603,0.67947459,119300.0,119290.0,0.30685864]
[1753640662820,1.00139,119300.0,119290.0,0.31524157]
[1753640663030,1.00139,119300.0,119290.0,0.1392]
[1753640663241,1.00139,119300.0,119290.0,0.30685864]
[1753640663442,1.00139,119300.0,119290.0,0.31524157]
[1753640663947,1.00139,119300.0,119290.0,0.1392]
[1753640665601,1.00139,119300.0,119290.0,0.30685864]
[1753640665809,1.00139,119300.0,119290.0,0.31524157]
[1753640666033,1.00139,119300.0,119290.0,0.30685864]
[1753640666565,1.00139,119300.0,119290.0,0.1392]
[1753640667894,0.67947459,119300.0,119290.0,0.30685864]
[1753640668110,1.00139,119300.0,119290.0,0.3152415]
[1753640668324,1.00977208,119300.0,119290.0,0.32362429]
[1753640668983,0.44403,119300.0,119290.0,0.34239938]
[1753640669198,0.70529707,119300.0,119290.0,0.42051938]
[1753640669412,0.72206102,119300.0,119290.0,0.39159938]
[1753640669643,0.72206102,119300.0,119290.0,0.34239938]
[1753640669940,0.77699894,119300.0,119290.0,0.34239938]
[1753640670640,0.69691541,119300.0,119290.0,0.34239938]
[1753640670876,0.25,119300.0,119290.0,1.33109209]
[1753640671318,0.4991,119310.0,119290.0,1.33109209]
[1753640671558,0.57424557,119310.0,119300.0,0.64509041]
[1753640671768,0.52424557,119310.0,119300.0,0.64710041]
[1753640671981,0.34464557,119310.0,119300.0,0.64710041]
[1753640672634,0.39464557,119310.0,119300.0,0.64710041]
[1753640672841,0.34464557,119310.0,119300.0,0.64710041]
[1753640673053,0.39464557,119310.0,119300.0,0.64710041]
[1753640673264,0.39764557,119310.0,119300.0,0.64710041]
[1753640673708,0.34964557,119310.0,119300.0,0.64710041]
[1753640673942,0.39964557,119310.0,119300.0,0.64710041]
[1753640674156,0.39964557,119310.0,119300.0,0.73157771]
[1753640675064,0.32464557,119310.0,119300.0,0.73157771]
[1753640675322,0.39964557,119310.0,119300.0,0.73157771]
[1753640676375,0.32464557,119310.0,119300.0,0.73157771]
[1753640676593,0.39964557,119310.0,119300.0,0.73157771]
[1753640679267,0.32464557,119310.0,119300.0,0.73157771]
[1753640679468,0.39964557,119310.0,119300.0,0.73157771]
[1753640680811,0.39964557,119310.0,119300.0,0.74006787]
[1753640681220,0.39964557,119310.0,119300.0,0.73157771]
[1753640682132,0.13014557,119310.0,119300.0,0.73157771]
[1753640682997,0.08014557,119310.0,119300.0,1.12114354]
[1753640683218,0.08014557,119310.0,119300.0,1.05349312]
[1753640683434,0.13014557,119310.0,119300.0,0.73157771]
[1753640683643,0.08014557,119310.0,119300.0,0.73157771]
[1753640684299,0.13014557,119310.0,119300.0,0.73157771]
[1753640684504,0.00514557,119310.0,119300.0,0.73157771]
[1753640684715,0.08014557,119310.0,119300.0,0.73157771]
[1753640684951,0.13014557,119310.0,119300.0,0.73157771]
[1753640685824,0.13014557,119310.0,119300.0,0.72859771]
[1753640686044,0.05514557,119310.0,119300.0,1.07020364]
[1753640686263,0.05514557,119310.0,119300.0,1.07318364]
[1753640686474,0.05514557,119310.0,119300.0,0.75126823]
[1753640686687,0.05514557,119310.0,119300.0,0.73157771]
[1753640687141,0.13014557,119310.0,119300.0,0.73157771]
[1753640687773,0.13014557,119310.0,119300.0,0.68237771]
[1753640688472,0.13014557,119310.0,119300.0,0.81533771]
[1753640688895,0.19346557,119310.0,119300.0,0.81533771]
[1753640689108,0.19346557,119310.0,119300.0,0.78413771]
[1753640689348,0.20184646,119310.0,119300.0,0.78413771]
[1753640689792,0.78297606,119310.0,119300.0,0.65736868]
[1753640689795,0.76621414,119310.0,119300.0,0.64898667]
[1753640690042,0.76621414,119310.0,119300.0,0.34]
[1753640690297,0.7578329,119310.0,119300.0,0.47296]
[1753640691158,0.7578329,119310.0,119300.0,0.34]
[1753640691796,0.7578329,119310.0,119300.0,0.47296]
[1753640692016,1.0058329,119310.0,119300.0,0.47296]
[1753640692281,1.0028329,119310.0,119300.0,0.47296]
[1753640692504,1.1357929,119310.0,119300.0,0.47296]
[1753640692712,1.1357929,119310.0,119300.0,0.47396]
[1753640692924,1.1357929,119310.0,119300.0,0.47296]
[1753640693158,1.1357929,119310.0,119300.0,0.47696]
[1753640693820,1.1357929,119310.0,119300.0,0.004]
[1753640694684,0.81387749,119310.0,119300.0,0.004]
[1753640694903,1.2057929,119310.0,119300.0,0.004]
[1753640695986,0.88387749,119310.0,119300.0,0.004]
[1753640696474,1.2057929,119310.0,119300.0,0.004]
[1753640697007,0.88387749,119310.0,119300.0,0.004]
[1753640697287,1.2057929,119310.0,119300.0,0.004]
[1753640698124,0.88387749,119310.0,119300.0,0.17164459]
[1753640698338,1.2057929,119310.0,119300.0,0.004]
[1753640698565,1.25318216,119310.0,119300.0,0.004]
[1753640698779,1.19741152,119310.0,119300.0,0.004]
[1753640699397,0.87549611,119310.0,119300.0,0.004]
[1753640699639,1.19741152,119310.0,119300.0,0.004]
[1753640700075,0.87549611,119310.0,119300.0,0.004]
[1753640700285,1.19741152,119310.0,119300.0,0.004]
[1753640700938,1.19741152,119310.0,119300.0,0.17164459]
[1753640701168,0.82549611,119310.0,119300.0,0.17164459]
[1753640701378,0.8922588,119310.0,119300.0,0.17164459]
[1753640701591,1.21417421,119310.0,119300.0,0.17164459]
[1753640702010,0.8922588,119310.0,119300.0,0.17164459]
[1753640702215,1.21417421,119310.0,119300.0,0.17164459]
[1753640702452,1.21417421,119310.0,119300.0,0.18002681]
[1753640702663,1.21417421,119310.0,119300.0,0.17164459]
[1753640703081,1.08121421,119310.0,119300.0,0.30456459]
[1753640703299,1.21413421,119310.0,119300.0,0.13692]
[1753640704844,1.22410983,119310.0,119300.0,0.13692]
[1753640705087,1.21413421,119310.0,119300.0,0.13692]
[1753640705299,1.21409421,119310.0,119300.0,0.17164459]
[1753640705944,0.8921788,119310.0,119300.0,0.17164459]
[1753640706174,1.21409421,119310.0,119300.0,0.17164459]
[1753640707453,1.20571297,119310.0,119300.0,0.17164459]
[1753640708831,0.88379756,119310.0,119300.0,0.17164459]
[1753640709041,1.20571297,119310.0,119300.0,0.17164459]
[1753640709257,1.19733152,119310.0,119300.0,0.17164459]
[1753640709480,1.25310216,119310.0,119300.0,0.004]
[1753640709704,1.19733152,119310.0,119300.0,0.004]
[1753640715794,0.87541611,119310.0,119300.0,0.004]
[1753640716011,1.19733152,119310.0,119300.0,0.004]
[1753640720254,1.19729152,119310.0,119300.0,0.004]
[1753640721474,0.87537611,119310.0,119300.0,0.004]
[1753640721682,1.19729152,119310.0,119300.0,0.004]
[1753640722692,1.06445152,119310.0,119300.0,0.004]
[1753640722871,1.19729152,119310.0,119300.0,0.004]
[1753640725279,0.87537611,119310.0,119300.0,0.004]
[1753640725600,1.19729152,119310.0,119300.0,0.004]
[1753640725817,0.87537611,119310.0,119300.0,0.004]
[1753640726025,1.19729152,119310.0,119300.0,0.004]
[1753640727271,0.87537611,119310.0,119300.0,0.004]
[1753640727720,1.19729152,119310.0,119300.0,0.004]
[1753640731842,0.87537611,119310.0,119300.0,0.004]
[1753640732074,1.19729152,119310.0,119300.0,0.004]
[1753640737618,2.05278423,119310.0,119300.0,0.004]
[1753640737832,1.73086882,119310.0,119300.0,0.004]
[1753640739386,1.73086882,119310.0,119300.0,0.003]
[1753640739595,0.00838314,119280.0,119270.0,0.81888767]
[1753640739724,0.34706546,119280.0,119270.0,0.85956151]
[1753640740152,0.42206546,119280.0,119270.0,0.85956151]
[1753640740779,0.42206546,119280.0,119270.0,0.86056151]
[1753640741617,0.42206532,119280.0,119270.0,0.86056151]
[1753640742036,0.125,119280.0,119270.0,0.86056151]
[1753640742251,0.075,119280.0,119270.0,0.86056151]
[1753640742464,0.325,119290.0,119280.0,0.19282275]
[1753640742688,0.25,119290.0,119280.0,1.18619448]
[1753640742930,0.075,119300.0,119290.0,0.18441099]
[1753640743189,0.12514557,119310.0,119300.0,0.59579041]
[1753640743394,0.12514557,119310.0,119300.0,0.72679771]
[1753640744475,0.15028859,119310.0,119300.0,0.86055771]
[1753640745315,0.472204,119310.0,119300.0,0.86055771]
[1753640745766,0.12514557,119310.0,119300.0,0.86055771]
[1753640747655,0.13352646,119310.0,119300.0,0.86055771]
[1753640748068,0.12514557,119310.0,119300.0,0.86055771]
[1753640749489,0.14190756,119310.0,119300.0,0.72779771]
[1753640749716,0.14190756,119310.0,119300.0,0.86051771]
[1753640749717,0.13352646,119310.0,119300.0,0.86051771]
[1753640749921,0.15028859,119310.0,119300.0,0.86051771]
[1753640750119,0.15028852,119310.0,119300.0,0.86051771]
[1753640750359,0.472204,119310.0,119300.0,0.86051771]
[1753640750577,0.46382283,119310.0,119300.0,0.86051771]
[1753640750989,0.44706098,119310.0,119300.0,0.86051771]
[1753640751192,0.13352646,119310.0,119300.0,0.86051771]
[1753640751402,0.14190742,119310.0,119300.0,0.86051771]
[1753640752843,0.15028845,119310.0,119300.0,0.86051771]
[1753640753088,0.4805851,119310.0,119300.0,0.78507771]
[1753640753324,0.20659742,119310.0,119300.0,0.78507771]
[1753640753563,0.52013187,119310.0,119300.0,0.81697771]
[1753640753794,0.4638229,119310.0,119300.0,0.81697771]
[1753640754032,0.45544187,119310.0,119300.0,0.81597771]
[1753640754253,0.45544187,119310.0,119300.0,0.86041771]
[1753640754254,0.12914557,119310.0,119300.0,0.86041771]
[1753640754472,0.13752653,119310.0,119300.0,0.86041771]
[1753640754927,0.12914557,119310.0,119300.0,0.86041771]
[1753640756471,0.00414557,119310.0,119300.0,1.12254543]
[1753640756688,0.00414557,119310.0,119300.0,1.46190986]
[1753640756910,0.25,119330.0,119320.0,0.74676611]
[1753640757130,0.375,119350.0,119340.0,0.53272579]
[1753640757347,0.375,119350.0,119340.0,0.69718579]
[1753640757561,0.38352367,119350.0,119340.0,0.73830579]
[1753640757774,0.37514552,119350.0,119340.0,0.73830579]
[1753640757985,0.14190196,119350.0,119340.0,0.69916579]
[1753640758173,0.20408196,119350.0,119340.0,0.69916579]
[1753640758462,0.19570367,119350.0,119340.0,0.69916579]
[1753640758901,0.18732552,119350.0,119340.0,0.69916579]
[1753640759325,0.18732552,119350.0,119340.0,0.70016579]
[1753640759756,0.50924093,119350.0,119340.0,0.70016579]
[1753640759970,0.50924093,119350.0,119340.0,0.95302861]
[1753640759971,0.00014552,119350.0,119340.0,0.95302861]
[1753640760193,0.00014552,119350.0,119340.0,0.89302861]
[1753640760194,0.07514552,119350.0,119340.0,0.89302861]
[1753640760413,0.07514552,119350.0,119340.0,0.87781211]
[1753640761662,0.00014552,119350.0,119340.0,0.87781211]
[1753640761825,0.07514552,119350.0,119340.0,0.90322434]
[1753640762758,0.07514552,119350.0,119340.0,0.91276937]
[1753640763165,0.07514552,119350.0,119340.0,0.97669839]
[1753640764323,0.00014552,119350.0,119340.0,0.97669839]
[1753640764535,0.07514552,119350.0,119340.0,0.91276937]
[1753640764746,0.07514552,119350.0,119340.0,0.91281953]
[1753640764948,0.34464552,119350.0,119340.0,0.91281953]
[1753640767557,0.34464552,119350.0,119340.0,0.91181953]
[1753640767909,0.34564552,119350.0,119340.0,0.91181953]
[1753640768104,0.00114552,119350.0,119340.0,1.42008267]
[1753640768511,0.00114552,119350.0,119340.0,3.77882526]
[1753640768742,0.00114552,119350.0,119340.0,3.46148326]
[1753640768949,0.00114552,119350.0,119340.0,3.48664026]
[1753640769150,0.00114552,119350.0,119340.0,1.41311526]
[1753640769151,0.00014552,119350.0,119340.0,1.41311526]
[1753640769551,0.00014552,119350.0,119340.0,1.52026526]
[1753640769920,0.00014552,119350.0,119340.0,1.82181667]
[1753640770097,0.00014552,119350.0,119340.0,1.81981667]
[1753640770296,0.00014552,119350.0,119340.0,1.46067126]
[1753640770494,0.00014552,119350.0,119340.0,1.51240126]
[1753640770708,0.00014552,119350.0,119340.0,1.83431667]
[1753640770921,0.00014552,119350.0,119340.0,1.51240126]
[1753640771134,0.00014552,119350.0,119340.0,1.46066026]
[1753640771361,0.00014552,119350.0,119340.0,1.78257567]
[1753640771533,0.00214552,119350.0,119340.0,1.86525467]
[1753640771743,0.00214552,119350.0,119340.0,1.84152267]
[1753640771956,0.00014552,119350.0,119340.0,1.50326826]
[1753640772171,0.00014552,119350.0,119340.0,1.82518367]
[1753640772572,0.00014552,119350.0,119340.0,1.83578526]
[1753640772976,0.00014552,119350.0,119340.0,1.76794826]
[1753640773217,0.00014552,119350.0,119340.0,2.08986367]
[1753640773644,0.00014552,119350.0,119340.0,3.15878167]
[1753640773882,0.00014552,119350.0,119340.0,2.83686626]
[1753640774068,0.00014552,119350.0,119340.0,3.15878167]
[1753640774515,0.00014552,119350.0,119340.0,3.14206867]
[1753640774753,0.00014552,119350.0,119340.0,2.82015326]
[1753640775000,0.00014552,119350.0,119340.0,2.12146994]
[1753640775666,0.00014552,119350.0,119340.0,2.31501194]
[1753640775899,0.00014552,119350.0,119340.0,2.28892094]
[1753640776162,0.00014552,119350.0,119340.0,2.24937094]
[1753640776831,0.00014552,119350.0,119340.0,1.51389778]
[1753640777187,0.00014552,119350.0,119340.0,1.59837508]
[1753640777421,0.00014552,119350.0,119340.0,1.42997782]
[1753640777651,0.00014552,119350.0,119340.0,1.56337782]
[1753640777862,0.00014552,119350.0,119340.0,1.56344471]
[1753640778067,0.06732552,119350.0,119340.0,0.989156]
[1753640778288,0.06732552,119350.0,119340.0,0.769119]
[1753640778501,0.0757036,119350.0,119340.0,0.429119]
[1753640778726,0.1083036,119350.0,119340.0,0.769119]
[1753640778940,0.09992552,119350.0,119340.0,0.769079]
[1753640779162,0.06732552,119350.0,119340.0,0.635719]
[1753640779396,0.06732552,119350.0,119340.0,0.768079]
[1753640779600,0.06832552,119350.0,119340.0,0.768079]
[1753640779846,0.33782552,119350.0,119340.0,0.768079]
[1753640780291,0.3462036,119350.0,119340.0,0.768079]
[1753640780497,0.3788036,119350.0,119340.0,0.79283631]
[1753640781224,0.3798036,119350.0,119340.0,0.79283631]
[1753640781664,0.7924973,119350.0,119340.0,0.77538729]
[1753640781863,0.96845016,119350.0,119340.0,0.75862924]
[1753640782074,0.8758758,119350.0,119340.0,0.77538743]
[1753640782289,0.52882552,119350.0,119340.0,0.78376635]
[1753640782493,0.5372036,119350.0,119340.0,0.78376635]
[1753640782694,0.5372036,119350.0,119340.0,0.78380635]
[1753640783109,0.54558182,119350.0,119340.0,0.65040635]
[1753640783326,0.77395065,119350.0,119340.0,0.33411194]
[1753640783547,0.76557236,119350.0,119340.0,0.33411202]
[1753640783759,0.75719386,119350.0,119340.0,0.6657326]
[1753640784426,0.75719386,119350.0,119340.0,0.69087049]
[1753640784850,0.27608245,119350.0,119340.0,0.70762847]
[1753640785072,0.60637594,119350.0,119340.0,0.70762847]
[1753640785290,0.58961908,119350.0,119340.0,0.70762847]
[1753640785568,0.26770367,119350.0,119340.0,0.70762847]
[1753640785701,0.28446046,119350.0,119340.0,0.70762847]
[1753640786114,0.29283889,119350.0,119340.0,0.70762847]
[1753640786472,0.22692552,119350.0,119340.0,0.79210534]
[1753640786683,0.19432552,119350.0,119340.0,0.83667218]
[1753640787090,0.19432552,119350.0,119340.0,0.79418845]
[1753640787289,0.2027036,119350.0,119340.0,0.79203845]
[1753640787500,0.21108182,119350.0,119340.0,0.79203845]
[1753640787711,0.21108182,119350.0,119340.0,0.7921137]
[1753640787927,0.2027036,119350.0,119340.0,0.7921137]
[1753640788313,0.21108175,119350.0,119340.0,0.7921137]
[1753640788533,0.2027036,119350.0,119340.0,0.7921137]
[1753640788748,0.19432552,119350.0,119340.0,0.7921137]
[1753640788978,0.2027036,119350.0,119340.0,0.7921137]
[1753640789140,0.19432552,119350.0,119340.0,0.7921137]
[1753640790728,0.00214552,119350.0,119340.0,1.27249641]
[1753640790942,0.00214552,119350.0,119340.0,1.45324543]
[1753640791615,0.00214552,119350.0,119340.0,1.32324543]
[1753640791829,0.00214552,119350.0,119340.0,2.08012213]
[1753640792042,0.00214552,119350.0,119340.0,1.91552813]
[1753640792476,0.00214552,119350.0,119340.0,1.47361272]
[1753640792730,0.00214552,119350.0,119340.0,1.64038718]
[1753640792939,0.00014552,119350.0,119340.0,1.06699177]
[1753640793137,0.00014552,119350.0,119340.0,1.03103177]
[1753640793349,0.00014552,119350.0,119340.0,1.02797652]
[1753640794224,0.00014552,119350.0,119340.0,0.87783747]
[1753640794440,0.00014552,119350.0,119340.0,0.87792109]
[1753640794648,0.00014552,119350.0,119340.0,0.84462109]
[1753640797542,0.00014552,119350.0,119340.0,0.99476014]
[1753640799871,0.00014552,119350.0,119340.0,1.10441514]
[1753640800093,0.00014552,119350.0,119340.0,0.99476014]
[1753640801095,0.06280552,119350.0,119340.0,0.99476014]
[1753640801306,0.06280552,119350.0,119340.0,0.84462109]
[1753640802073,0.06280552,119350.0,119340.0,0.84453747]
[1753640802278,0.06280552,119350.0,119340.0,0.86969847]
[1753640803741,0.06280552,119350.0,119340.0,0.97931847]
[1753640804172,0.06280552,119350.0,119340.0,1.07941882]
[1753640804385,0.06280552,119350.0,119340.0,0.97941882]
[1753640805550,0.06280552,119350.0,119340.0,0.99801182]
[1753640805977,0.06280552,119350.0,119340.0,0.98371182]
[1753640807212,0.06280552,119350.0,119340.0,1.10359082]
[1753640807869,0.06280552,119350.0,119340.0,0.86979882]
[1753640810173,0.06280552,119350.0,119340.0,0.98719082]
[1753640810563,0.06280552,119350.0,119340.0,0.95529082]
[1753640811248,0.00014552,119350.0,119340.0,0.95529082]
[1753640811468,0.00014552,119350.0,119340.0,1.49974623]
[1753640811878,0.00014552,119350.0,119340.0,1.58422353]
[1753640812053,0.00014552,119350.0,119340.0,1.26230812]
[1753640812279,0.00014552,119350.0,119340.0,1.58422353]
[1753640813423,0.00014552,119350.0,119340.0,3.36777553]
[1753640813628,0.00014552,119350.0,119340.0,2.83249753]
[1753640814052,0.00014552,119350.0,119340.0,2.51058212]
[1753640814293,0.00014552,119350.0,119340.0,2.83249753]
[1753640814498,0.00014552,119350.0,119340.0,4.24206353]
[1753640814706,0.00014552,119350.0,119340.0,4.05556453]
[1753640814917,0.00014552,119350.0,119340.0,2.59732912]
[1753640815157,0.00014552,119350.0,119340.0,2.37945253]
[1753640815603,0.00014552,119350.0,119340.0,2.65740053]
[1753640816472,0.00014552,119350.0,119340.0,3.01071053]
[1753640816692,0.00014552,119350.0,119340.0,2.18727753]
[1753640816850,0.00014552,119350.0,119340.0,2.14392153]
[1753640817456,0.00014552,119350.0,119340.0,2.62097753]
[1753640818379,0.00014552,119350.0,119340.0,2.62650353]
[1753640818592,0.00014552,119350.0,119340.0,2.41242653]
[1753640819560,0.00014552,119350.0,119340.0,2.97631553]
[1753640819887,0.00014552,119350.0,119340.0,2.92573753]
[1753640820208,0.00014552,119350.0,119340.0,2.90351353]
[1753640820424,0.00014552,119350.0,119340.0,2.67676153]
[1753640820601,0.00014552,119350.0,119340.0,2.45332153]
[1753640821266,1.928e-05,119350.0,119340.0,2.69420953]
[1753640821599,1.928e-05,119350.0,119340.0,2.97723953]
[1753640821832,1.928e-05,119350.0,119340.0,2.90136353]
[1753640822648,1.928e-05,119350.0,119340.0,2.92247853]
[1753640823457,1.928e-05,119350.0,119340.0,1.51714153]
[1753640823613,1.928e-05,119350.0,119340.0,2.91907553]
[1753640824785,1.928e-05,119350.0,119340.0,2.91047053]
[1753640825764,1.928e-05,119350.0,119340.0,2.90885453]
[1753640825966,1.928e-05,119350.0,119340.0,2.90985453]
[1753640826179,1.928e-05,119350.0,119340.0,2.90875418]
[1753640826403,1.928e-05,119350.0,119340.0,2.90775418]
[1753640826588,1.928e-05,119350.0,119340.0,2.90975418]
[1753640826806,1.928e-05,119350.0,119340.0,2.95572418]
[1753640827147,1.928e-05,119350.0,119340.0,2.93085918]
[1753640827363,1.928e-05,119350.0,119340.0,2.93097626]
[1753640827958,1.928e-05,119350.0,119340.0,2.93528826]
[1753640828278,1.928e-05,119350.0,119340.0,2.85914926]
[1753640828486,0.09458928,119350.0,119340.0,1.00743555]
[1753640828694,0.12758928,119350.0,119340.0,0.93967653]
[1753640829124,0.12758928,119350.0,119340.0,0.95712555]
[1753640833289,0.12758928,119350.0,119340.0,0.95708555]
[1753640833491,0.13596743,119350.0,119340.0,0.95708555]
[1753640834140,0.12758928,119350.0,119340.0,0.95708555]
[1753640835216,0.13596736,119350.0,119340.0,0.95708555]
[1753640835381,0.12758928,119350.0,119340.0,0.95708555]
[1753640838949,0.39708928,119350.0,119340.0,0.95708555]
[1753640840497,0.39708928,119350.0,119340.0,0.95696847]
[1753640842357,0.39708928,119350.0,119340.0,0.93221116]
[1753640845038,0.40546736,119350.0,119340.0,0.93235335]
[1753640845470,0.39708928,119350.0,119340.0,0.93235335]
[1753640845905,0.19434565,119350.0,119340.0,0.79486433]
[1753640846174,0.20272415,119350.0,119340.0,0.45486433]
[1753640846390,0.59963956,119350.0,119340.0,0.45486433]
[1753640846614,0.59963956,119350.0,119340.0,0.79486433]
[1753640846848,0.27772415,119350.0,119340.0,0.79486433]
[1753640847082,0.77559263,119350.0,119340.0,0.77710642]
[1753640847540,0.76721455,119350.0,119340.0,0.64250642]
[1753640847738,0.76821455,119350.0,119340.0,0.77510649]
[1753640847952,0.60064019,119350.0,119340.0,0.78348541]
[1753640848208,0.76821455,119350.0,119340.0,0.77510649]
[1753640848417,0.65641069,119350.0,119340.0,0.78348541]
[1753640848615,0.60901869,119350.0,119340.0,0.78348541]
[1753640849037,0.77659305,119350.0,119340.0,0.77510649]
[1753640849284,0.60901869,119350.0,119340.0,0.78348541]
[1753640849631,0.78497176,119350.0,119340.0,0.77510649]
[1753640849836,0.60901911,119350.0,119340.0,0.77568897]
[1753640850735,0.2871037,119350.0,119340.0,0.77568897]
[1753640851229,0.2871037,119350.0,119340.0,0.78406789]
[1753640851230,0.27872499,119350.0,119340.0,0.78406789]
[1753640851839,0.44629935,119350.0,119340.0,0.75893078]